Cogmind - Beta 16.1 @@@ ROGUE MODE // 2026.04.20 @ 00:08:01 Player: Peanut Result: Defending 0bPrime! Performance ------------- Evolutions (8) 4000 Regions Visited (20) 4000 Robots Destroyed (346) 1730 Value Destroyed (19331) 19331 Prototype IDs (141) 2820 Alien Tech Used (5) 1000 Bonus (44920) 44920 TOTAL SCORE: 77801 Bonus ------- High Alert Combat Kills 8034 Follower Combat Kills 657 Delivered SUBCON Basin 2000 Registered with UFD 300 Met Optimus in HQ 500 Met Warlord at Base 500 MAIN.C Attacked Warlord 500 Warlord Defense Kills 528 Destroyed Superfortress 15000 Met Optimus at Protoforge 1000 Executed Drillbomb Mission 10000 Optimus Survived to 0b1 3000 Win 3000 Friendly Fire -99 Cogmind --------- Core Integrity 486/1450 Matter 166/1800 Energy 340/340 System Corruption 17% Temperature Cool (0) Movement Hovering (104) Ox1 Location 0bPrime Parts ------- > --- POWER (2) -------- Concept Zero-point Core Concept Zero-point Core > --- PROPULSION (7) --- Gravjet Array Gravjet Array Concept Combat Aerolev Unit Concept Combat Aerolev Unit Concept Combat Aerolev Unit > --- UTILITY (12) ----- Concept Antigrav Storage Unit Concept NT7 Matterbank Concept NT7 Matterbank Spectral Analyzer Experimental Sensor Array Advanced Signal Interpreter Concept Weapon Articulator Experimental Kinecellerator Experimental Reaction Control System Heavy Regenerative Plating Graphene Brace > --- WEAPON (2) ------- Concept Smart ZDS > --- INVENTORY (25) --- Concept Zero-point Core Gravjet Array Concept Gyrokinetic System Concept Gyrokinetic System Experimental Coolant Injector Concept Chromion Battery (800) Concept Beam Splitter Concept Antimissile System Concept Matter Streamer Concept Arcsight Missile Launcher Peak State ------------ > --- POWER ------------ Concept Zero-point Core Concept Zero-point Core > --- PROPULSION ------- Gravjet Array Gravjet Array Concept Combat Aerolev Unit Concept Combat Aerolev Unit Concept Combat Aerolev Unit > --- UTILITY ---------- Concept Antigrav Storage Unit Spectral Analyzer Experimental Sensor Array Advanced Signal Interpreter Concept Weapon Articulator Experimental Core Analyzer Experimental Kinecellerator Experimental Reaction Control System Concept Phase Shift Module Heavy Regenerative Plating Concept Beam Splitter > --- WEAPON ----------- Concept XC Strikerail Concept XC Strikerail > --- INVENTORY -------- Concept Zero-point Core Gravjet Array Concept Gyrokinetic System Concept Gyrokinetic System Experimental Coolant Injector Concept Chromion Battery Concept NT7 Matterbank Concept NT7 Matterbank Graphene Brace Concept Antimissile System Concept Matter Streamer Concept XC Strikerail Concept Arcsight Missile Launcher Concept Smart ZDS UFD Drillbomb [Rating: 268] Favorites ----------- Power Micro Fission Core Engine Light Deuterium Engine Power Core Micro Fission Core Reactor Micro Antimatter Reactor Propulsion Combat Airjet Treads Light Treads Wheel Wheel Hover Unit Combat Airjet Utility Advanced Signal Interpreter Device Experimental Sensor Array Storage Large Storage Unit Processor Advanced Signal Interpreter Hackware Improved Hacking Suite Protection Enhanced Scrap Shield Weapon Subdweller Machine Gun Energy Gun EM Shotgun Energy Cannon Light EM Pulse Cannon Ballistic Gun Subdweller Machine Gun Ballistic Cannon Compact Linear Accelerator Launcher Concept Smart ZDS Special Weapon Improved Plasma Cutter Slashing Weapon Nanosword Piercing Weapon Lance Special Melee Weapon Advanced Datajack Build | -11 -10 -10 -10 -7 -7 -5 -5 -5 -5 -4 -4 -4 -4 -4 -3 -3 -3 -2 -2 -2 ------- Run | Yrd Mat Min Sub Rec Scr Fac Upp Upp War Pro Fac Upp Upp Zhi Pro Res Tes Res Qua Frg Slots Evolved 16 | . . . . . . 10 . . . . 2 . . . . 2 . 2 . . Power 1 | . . . . . . 1 . . . . . . . . . . . . . . Propulsion 5 | . . . . . . 4 . . . . . . . . . . . 1 . . Utility 10 | . . . . . . 5 . . . . 2 . . . . 2 . 1 . . Weapon . | . . . . . . . . . . . . . . . . . . . . . Parts Attached 221 | 7 10 3 15 1 5 38 2 1 8 2 12 1 . 1 . 18 12 11 14 60 Power 23 | 1 1 1 . . 2 4 . . . . 1 . . . . 2 1 3 1 6 Engine 5 | 1 . . . . 2 2 . . . . . . . . . . . . . . Core 7 | . 1 1 . . . 2 . . . . . . . . . . . . . 3 Reactor 11 | . . . . . . . . . . . 1 . . . . 2 1 3 1 3 Propulsion 52 | 2 . . 5 1 2 7 . . 1 1 3 . . 1 . 4 . 4 8 13 Treads 4 | 2 . . 2 . . . . . . . . . . . . . . . . . Leg . | . . . . . . . . . . . . . . . . . . . . . Wheel 6 | . . . 3 1 2 . . . . . . . . . . . . . . . Hover 42 | . . . . . . 7 . . 1 1 3 . . 1 . 4 . 4 8 13 Flight . | . . . . . . . . . . . . . . . . . . . . . Utility 88 | 2 2 . 3 . 1 21 2 1 2 . 7 1 . . . 5 6 3 5 27 Device 42 | 1 1 . 1 . 1 7 1 1 1 . 3 1 . . . 3 1 2 4 14 Storage 12 | 1 1 . 1 . . 1 . . . . 1 . . . . 1 . . 1 5 Processor 14 | . . . . . . 5 . . 1 . 1 . . . . 1 1 . . 5 Hackware 7 | . . . . . . 3 . . . . 2 . . . . . 1 1 . . Protection 13 | . . . 1 . . 5 1 . . . . . . . . . 3 . . 3 Artifact . | . . . . . . . . . . . . . . . . . . . . . Weapon 58 | 2 7 2 7 . . 6 . . 5 1 1 . . . . 7 5 1 . 14 Energy Gun 11 | 1 1 1 3 . . . . . 1 1 . . . . . . . . . 3 Energy Cannon 10 | . 3 1 . . . 1 . . 1 . . . . . . 2 2 . . . Ballistic Gun 9 | 1 . . 2 . . 1 . . . . . . . . . . . . . 5 Ballistic Cannon 5 | . 2 . . . . . . . 2 . . . . . . . 1 . . . Launcher 7 | . . . 1 . . 1 . . . . . . . . . 1 . 1 . 3 Special Weapon 6 | . 1 . . . . 2 . . 1 . . . . . . 1 . . . 1 Impact Weapon . | . . . . . . . . . . . . . . . . . . . . . Slashing Weapon 3 | . . . . . . . . . . . . . . . . . 2 . . 1 Piercing Weapon 4 | . . . 1 . . 1 . . . . . . . . . 1 . . . 1 Special Melee Weapon 3 | . . . . . . . . . . . 1 . . . . 2 . . . . Unidentified Prototypes 34 | . . . . . . . 1 . 6 . . . . 1 . . 5 1 2 18 Parts Lost 33 | . . . 4 . . 3 1 . 1 . 1 . . . . 1 1 5 . 16 Power 4 | . . . . . . 1 . . . . . . . . . . . 1 . 2 Propulsion 12 | . . . 1 . . . 1 . 1 . 1 . . . . . 1 2 . 5 Utility 6 | . . . . . . 2 . . . . . . . . . . . 2 . 2 Weapon 11 | . . . 3 . . . . . . . . . . . . 1 . . . 7 Highest Loss Streak 4 | . . . 2 . . 1 1 . 1 . 1 . . . . 1 1 4 . 4 To Critical Strikes . | . . . . . . . . . . . . . . . . . . . . . Average Backups 15 | 3 9 15 20 10 20 17 14 14 14 14 13 14 14 13 14 13 13 13 17 16 Power . | . . 1 1 . . . . . . . . . . . . . . . 1 1 Propulsion 2 | 1 2 3 5 2 4 1 . . . . . 2 2 1 . . . . 2 2 Utility 6 | . . 2 5 3 10 9 9 9 8 8 7 6 6 6 7 7 7 6 6 7 Weapon 4 | 1 6 7 6 3 3 4 3 3 4 4 4 4 4 5 4 3 4 5 5 3 Tool/Special . | . . . . . . . . . . . . . . . . . . . . . Unused Backups 71 | . 3 . 12 . 3 8 . 1 6 . 8 . . . . 5 9 . 3 13 Power 10 | . 1 . 3 . 1 1 . . . . 1 . . . . . 2 . . 1 Propulsion 10 | . . . 3 . 1 1 . . . . . . . . . . . . . 5 Utility 35 | . 1 . 5 . 1 4 . . 5 . 5 . . . . 2 6 . 1 5 Weapon 12 | . 1 . 1 . . 2 . 1 1 . 1 . . . . 2 1 . 2 . Tool/Special 4 | . . . . . . . . . . . 1 . . . . 1 . . . 2 Average Slot Usage (%) 93 | . 100 100 99 100 97 91 88 88 87 88 88 89 89 90 94 90 89 89 92 87 Core 8 | . 11 14 14 14 11 3 11 11 11 11 9 5 5 5 5 1 . . . 3 Reactor 2 | . . . . . . . . . . . . 5 5 5 5 6 9 7 8 4 Treads 6 | . 28 28 15 14 4 1 . . . . . . . . . . . . . . Wheel 5 | . . . 12 14 21 6 . . . . . . . . . . . . . . Hover 14 | . . . . . . 19 28 29 29 29 26 26 26 27 31 23 22 25 27 23 Device 12 | . 14 14 12 . . 8 9 11 10 5 9 10 10 10 10 18 17 16 17 20 Storage 8 | . 14 14 14 14 14 5 5 5 5 5 5 5 5 5 5 4 4 4 4 4 Processor 7 | . . . . . . 5 5 5 5 11 14 15 15 15 15 14 14 13 13 13 Hackware 3 | . . . . . . 7 6 5 5 5 5 5 5 5 5 4 5 8 8 2 Protection 5 | . . . 1 14 13 8 5 5 5 5 5 5 5 5 5 3 4 4 4 4 Energy Gun 4 | . 3 14 18 . . . . . . 3 4 . . . . . . . . . Energy Cannon 2 | . 23 13 3 . . . . 2 4 1 . . . . . . 1 1 . . Ballistic Gun 5 | . . . 3 28 28 5 . . . . . . . . . . . . . 3 Special Melee Weapon 1 | . . . . . . . . . . . . 4 4 5 5 2 3 1 4 . Peak Build Rating 268 | 7 13 14 33 33 28 95 94 95 113 117 124 123 123 127 127 155 164 186 190 268 Average Rating 97 | 5 11 13 17 27 20 72 93 94 98 112 120 122 122 122 126 148 153 175 182 226 On Entrance 90 | . 7 13 14 33 18 27 91 94 94 112 113 121 122 122 127 127 149 157 180 182 Avg Prop Armor Cover (%) 8 | . . . 11 8 8 3 3 . . . . . . . . . . . . 2 Naked Turns . | . . . . . . . . . . . . . . . . . . . . . Heaviest Build 134 | 11 34 36 107 103 106 134 57 60 64 61 62 66 60 60 60 80 76 89 92 118 Greatest Support 114 | 40 40 40 40 16 28 61 62 62 66 66 70 70 70 76 76 76 78 91 97 114 Greatest Overweight (x) 10 | . . . 10 10 6 2 . . 1 . . . . . . 1 1 2 . 1 Average Overweight (x) 1 | . . . 8 9 3 . . . . . . . . . . . . . . . Largest Inventory Capacity 25 | 8 15 15 25 25 25 25 15 15 15 15 15 15 15 15 15 15 15 15 20 25 Average Capacity 19 | 6 12 15 24 25 25 18 15 15 15 15 15 15 15 15 15 15 15 15 18 21 Most Carried 25 | 5 15 15 25 25 25 25 15 15 15 15 15 15 15 15 15 15 15 15 20 25 Average Carried 17 | 3 9 14 23 21 21 17 14 14 14 14 14 14 15 14 14 14 14 14 17 19 Final Capacity 25 | 8 15 15 25 25 25 15 15 15 15 15 15 15 15 15 15 15 15 15 20 25 Final Carried 25 | 5 15 15 25 19 25 15 14 15 15 15 15 15 15 15 15 15 15 15 20 11 Class Distribution -------------------- 33% | Mutant 13% | Commander-Mutant 9% | Hacker-Ninja 8% | Scavenger-Mutant 8% | Scientist-Mutant 8% | Trapper-Ninja 6% | Scavenger-Scout 3% | Hacker-Mutant Dominant Class ---------------- Mutant | -10/Materials Mutant | -10/Mines Mutant | -10/Subcaves Commander-Mutant | -7/Recycling Commander-Mutant | -7/Scraptown Hacker-Mutant | -5/Factory Mutant | -5/Upper Caves Mutant | -5/Upper Caves Mutant | -5/Warlord Scavenger-Mutant | -4/Proximity Caves Scavenger-Mutant | -4/Factory Scientist-Mutant | -4/Upper Caves Scientist-Mutant | -4/Upper Caves Scientist-Mutant | -4/Zhirov Scientist-Mutant | -3/Proximity Caves Trapper-Ninja | -3/Research Trapper-Ninja | -3/Testing Hacker-Ninja | -2/Research Hacker-Ninja | -2/Quarantine Scavenger-Scout | -2/Protoforge Resources | -11 -10 -10 -10 -7 -7 -5 -5 -5 -5 -4 -4 -4 -4 -4 -3 -3 -3 -2 -2 -2 ----------- Run | Yrd Mat Min Sub Rec Scr Fac Upp Upp War Pro Fac Upp Upp Zhi Pro Res Tes Res Qua Frg Matter Collected 20407 | 235 265 40 844 148 50 660 225 535 301 188 901 390 72 . 92 748 506 588 426 13193 Remotely 6985 | . . . . . . . . . . . . . . . . . . . . 6985 Salvage Created 11183 | 26 641 81 946 . . 763 176 530 301 159 396 83 83 . . 1101 626 1655 576 3040 Parts 551 | 4 45 2 75 . . 41 11 11 17 3 12 7 1 . 1 47 19 69 23 163 Haulers Intercepted 7 | . 1 . . . . 1 . . . . 2 . . . . 1 . 2 . . Recyclers Shooed 4 | 1 . . . . . . . . . . 2 . . . . . . 1 . . Parts Field Recycled . | . . . . . . . . . . . . . . . . . . . . . Retrieved Matter . | . . . . . . . . . . . . . . . . . . . . . Parts Self-Destructed 53 | . . . 18 . . . 9 . . 6 . 12 8 . . . . . . . Prevented 2 | . . . 1 . . . . . . . . . . . 1 . . . . . Parts Restored 6 | . . . . . . . . . . . . . . . . . . . . 6 Faulty 6 | . . . . . . . . . . . . . . . . . . . . 6 Kills | -11 -10 -10 -10 -7 -7 -5 -5 -5 -5 -4 -4 -4 -4 -4 -3 -3 -3 -2 -2 -2 ------- Run | Yrd Mat Min Sub Rec Scr Fac Upp Upp War Pro Fac Upp Upp Zhi Pro Res Tes Res Qua Frg Combat Hostiles Destroyed 273 | . 16 . 24 . . 16 7 . 6 3 2 6 2 . . 13 1 30 2 145 Melee 12 | . . . . . . 1 2 . . . . . . . . 2 . . . 7 Guns 49 | . 1 . 14 . . 6 . . . 1 . . . . . . . . . 27 Cannons 60 | . 14 . 5 . . . . . 3 2 1 1 . . . 5 1 8 2 18 AOE 140 | . 1 . 3 . . 9 5 . 2 . 1 5 2 . . 6 . 19 . 87 Classes Destroyed 28 | 1 5 1 2 . . 5 . 1 3 . 1 1 . . 1 . . . . 7 Worker 11 | . . . . . . 2 . . . . . . . . . 2 1 5 . 1 Builder 11 | . . . . . . . . . . . 2 . . . . . 1 5 . 3 Tunneler 2 | 1 1 . . . . . . . . . . . . . . . . . . . Hauler 7 | . 1 . . . . 1 . . . . 2 . . . . 1 . 2 . . Recycler 19 | . . 1 . . . 2 . . . . 2 . . . . 6 2 5 1 . Carrier 2 | . . . . . . . . . . . . . . . . . . . . 2 Mechanic 6 | . . . . . . . . . 1 . . . . . . . . . . 5 Operator 3 | . 1 . . . . . . . . . 1 . . . . . . . . 1 Drone 3 | . . . . . . . . . . . . . . . . . . . . 3 Turret 2 | . . . 2 . . . . . . . . . . . . . . . . . Watcher 9 | . . . . . . 1 . . . . . . . . . . 1 1 1 5 Swarmer 61 | . 3 . 7 . . 7 5 . 2 . . 5 . . . 5 . 9 . 18 Cutter 3 | . . . . . . 3 . . . . . . . . . . . . . . Saboteur 5 | . . . . . . . . . . . . . . . . . . . . 5 Grunt 44 | . 12 . . . . 2 1 . . . . . 2 . . 1 . 8 . 18 Brawler 3 | . . . . . . . . . . . . . . . . . . . . 3 Duelist 6 | . . . . . . . . . 1 . . . . . . . . . . 5 Protector 5 | . . . . . . . . . 2 . . . . . . . . . . 3 Sentry 15 | . . . 1 . . 1 . . . 1 . . . . . . . 2 . 10 Specialist 2 | . . . . . . . . . . . . . . . . . . . . 2 Hunter 25 | . . . . . . 1 1 . 1 1 . . . . . . . 6 . 15 Programmer 40 | . . . . . . 2 . . . 1 2 . . . . 7 1 5 2 20 Hotshot 2 | . . . . . . . . . . . . . . . . . . . . 2 Decapitator 18 | . . . . . . . . . . . . . . . . . . . . 18 Immortal 2 | . . . . . . . . . . . . . . . . . . . . 2 Striker 7 | . . . . . . . . . . . . . . . . . . . . 7 Executioner 14 | . . . . . . . . . . . . . . . . . . . . 14 Protovariant L 1 | . . . . . . . . . . . . . . . . . 1 . . . Subdweller 17 | . 1 . 16 . . . . . . . . . . . . . . . . . Decomposer 3 | . . . . . . . . 3 . . . . . . . . . . . . Samaritan 4 | . . . . . . . . 3 . 1 . . . . . . . . . . Tinkerer 1 | . . . . . . . . . . . . . . . 1 . . . . . Mutant 1 | . . . . . . . . . . . . 1 . . . . . . . . Best Kill Streak 17 | 1 6 1 6 . . 7 4 . 3 1 4 5 2 . . 11 2 13 2 17 Combat Bots Only 14 | . 6 . 4 . . 7 4 . 3 1 2 5 2 . . 7 1 8 2 14 Max Kills in Single Turn 7 | 1 1 1 3 . . 4 4 1 2 1 1 2 1 . 1 7 1 6 1 5 Gunslinging 1 | . . . . . . . . . . . . . . . . . . . . 1 Exploded 5 | . 1 . 2 . . 4 4 . 2 . 1 2 1 . . 5 . 4 . 4 Melee 1 | . . . . . . 1 1 . . . . . . . . 1 . . . 1 Uniques/NPCs Destroyed . | . . . . . . . . . . . . . . . . . . . . . Combat | -11 -10 -10 -10 -7 -7 -5 -5 -5 -5 -4 -4 -4 -4 -4 -3 -3 -3 -2 -2 -2 -------- Run | Yrd Mat Min Sub Rec Scr Fac Upp Upp War Pro Fac Upp Upp Zhi Pro Res Tes Res Qua Frg Hostile Shots Fired 997 | . 35 . 92 . . 71 25 23 5 10 32 16 4 . . 51 6 143 34 450 Missed 476 | . 14 . 31 . . 22 8 11 . 2 17 7 1 . . 19 . 78 10 256 Hits 521 | . 21 . 61 . . 49 17 12 5 8 15 9 3 . . 32 6 65 24 194 Melee 31 | . . . . . . 8 . . . . . . . . . . . . . 23 Projectile 490 | . 21 . 61 . . 41 17 12 5 8 15 9 3 . . 32 6 65 24 171 AOE 4 | . . . . . . . . . . . . . . . . . . . . 4 Critical Strikes 31 | . 1 . . . . 8 . . 1 . 1 . . . . . . 5 . 15 Actively Blocked 17 | . . . . . . 2 . . . . . . . . . . . . . 15 Damage Taken 13746 | . 251 . 1095 . . 1064 288 72 111 80 500 231 59 . . 1057 391 1401 549 6597 Core 1157 | . 58 . 130 . . 77 35 . 34 11 81 28 17 . . 46 22 77 41 500 Absorbed by Shields 188 | . . . . . . 10 . . 54 76 . . . . . . . 19 . 29 Redirected to Shielding 225 | . . . . . . 112 . . . . . . . . . . . . . 113 Ignored by Resistances 132 | . . . . . . . . . . . . . . . . . . . . 132 Regen/Repaired (Parts) 3467 | . . . . . . 49 . . 43 . . . . . . . 50 572 69 2684 Core Remaining (%) 70 | 100 . . . . 24 . . . . 84 . . . . 89 . 94 . . 33 Volleys Fired 751 | 6 40 1 85 . . 28 5 29 20 12 73 31 5 1 3 47 27 49 19 270 Largest 2 | 2 2 1 2 . . 2 1 1 2 2 2 1 1 1 1 1 1 1 1 2 Hottest 190 | 60 112 56 105 . . 90 39 90 148 148 103 58 58 58 58 58 130 130 130 190 Shots Fired 953 | 12 67 1 138 . . 44 5 29 22 22 82 31 5 1 3 47 27 48 19 350 Gun 353 | 12 6 . 89 . . 32 . . . 6 10 . . . . . . . . 198 Cannon 457 | . 59 1 17 . . 2 . 28 17 16 72 25 3 1 3 44 27 37 19 86 Launcher 107 | . . . 4 . . 10 5 . 1 . . 6 2 . . 3 . 11 . 65 Special 36 | . 2 . 28 . . . . 1 4 . . . . . . . . . . 1 Kinetic 432 | 6 11 . 10 . . 40 . . 9 12 72 25 3 1 3 39 5 . . 196 Thermal 181 | 6 2 . 31 . . 2 . 29 8 4 . . . . . . 8 35 19 37 Explosive 87 | . . . . . . 2 5 . 1 . . 6 2 . . . . 6 . 65 Electromagnetic 192 | . 54 1 97 . . . . . . . . . . . . . 14 2 . 24 Entropic 56 | . . . . . . . . . . 6 10 . . . . 8 . 5 . 27 Robot Hit Streak 68 | 5 14 5 26 . . 13 . 2 9 3 7 11 1 . 3 7 9 9 2 68 Robot Miss Streak 4 | 1 3 . 3 . . 2 . . 3 4 3 2 3 . . 3 3 2 2 2 Penetration Max 1 | . . . . . . . . . . . 1 . . . . . . . . 1 Secondary Targets 8 | . . . . . . 1 . . . . . . . . . . . . . 7 Max Gunslinging Chain 1 | . . . . . . 1 . . . . . . . . . . . . . 1 Shots Hit Robots 666 | 8 40 1 87 . . 42 12 17 15 11 29 15 1 . 3 28 25 36 24 272 Core Hits 474 | 2 25 1 53 . . 37 9 5 17 5 11 13 4 . 1 21 6 51 8 205 Critical Kills 15 | . . . . . . . . . . . . . . . . . . 1 . 14 Critical Parts Destroyed 16 | . . . . . . 1 . . . . 1 . . . . . . . . 14 Critical Strikes 57 | . . . 1 . . 2 . 1 1 2 1 . . . . 3 . 1 . 45 Meltdown 2 | . . . . . . . . . . . . . . . . . . 1 . 1 Destroy 31 | . . . . . . 1 . . . . . . . . . . . . . 30 Blast 3 | . . . . . . . . . 1 2 . . . . . . . . . . Corrupt 3 | . . . 1 . . . . . . . . . . . . . . . . 2 Sever 4 | . . . . . . . . . . . . . . . . . . . . 4 Impale 2 | . . . . . . 1 . 1 . . . . . . . . . . . . Detonate 1 | . . . . . . . . . . . 1 . . . . . . . . . Sunder 11 | . . . . . . . . . . . . . . . . 3 . . . 8 Melee Attacks 321 | . . . 25 . . 34 16 25 11 . . 3 . . 1 33 23 49 39 62 Impact . | . . . . . . . . . . . . . . . . . . . . . Slashing 140 | . . . . . . . . . . . . . . . . . 2 49 28 61 Piercing 155 | . . . 25 . . 34 16 25 11 . . . . . . 32 12 . . . Sneak Attacks 54 | . . . . . . 4 . 8 . . . 3 . . 1 3 11 7 12 5 Combat Hostiles 1 | . . . . . . . . . . . . . . . . . . 1 . . Follow-up Attacks . | . . . . . . . . . . . . . . . . . . . . . Damage Inflicted 69546 | 77 924 22 1659 . . 2079 928 1142 737 602 1598 805 145 . 79 3461 1219 9414 1764 42891 Guns 8034 | 77 77 . 933 . . 596 . . . 164 306 . . . . . . . . 5881 Cannons 13269 | . 807 22 266 . . . . . 445 438 1139 373 44 . 79 878 738 1950 581 5509 Explosions 40396 | . 40 . 460 . . 886 491 . 254 . 153 432 101 . . 2000 . 6410 . 29169 Melee 7749 | . . . . . . 597 437 1124 38 . . . . . . 583 481 1054 1183 2252 Ramming 80 | . . . . . . . . . . . . . . . . . . . . 80 Kinetic 10594 | 31 137 . 461 . . 1270 . . 301 341 1139 373 44 . 79 537 . . . 5881 Thermal 6346 | 46 40 . 80 . . . . 18 144 97 153 . . . . . 300 1862 581 3025 Explosive 33693 | . . . . . . 212 491 . 254 . . 432 101 . . . . 3034 . 29169 Electromagnetic 3156 | . 747 22 1118 . . . . . . . . . . . . . 438 88 . 743 Impact . | . . . . . . . . . . . . . . . . . . . . . Slashing 4788 | . . . . . . . . . . . . . . . . . 299 1054 1183 2252 Piercing 2961 | . . . . . . 597 437 1124 38 . . . . . . 583 182 . . . Entropic 7928 | . . . . . . . . . . 164 306 . . . . 2341 . 3376 . 1741 Highest Corruption 17 | . . . . . . 2 2 2 . 1 8 2 . . . 13 15 4 4 17 Average Corruption 8 | . . . . . . 1 2 1 . 1 4 1 . . . 9 13 2 3 13 Corruption Purged 18 | . . . . . . . . 2 . . 6 2 . . . . . . 8 . Corruption Blocked 7 | . . . . . . . . . . . . . . . . . 7 . . . Effects 296 | . . . . . . 8 3 6 . 3 23 1 . . . 50 32 12 6 152 Message Errors 61 | . . . . . . 3 1 3 . . 5 . . . . 10 7 1 2 29 Matter Fused 71 | . . . . . . 1 1 2 . 2 7 . . . . 13 5 3 2 35 Heat Flow Errors 34 | . . . . . . . . . . 1 2 . . . . 7 4 5 . 15 Energy Discharges 33 | . . . . . . 1 1 . . . 1 1 . . . 8 6 . . 15 Parts Rejected 3 | . . . . . . . . . . . . . . . . . . . . 3 Parts Fused 4 | . . . . . . . . . . . 1 . . . . 1 . . . 2 Data Loss (minor) 35 | . . . . . . 3 . 1 . . 3 . . . . 5 2 1 2 18 Data Loss (major) 17 | . . . . . . . . . . . . . . . . 1 5 1 . 10 Misfires 4 | . . . . . . . . . . . 1 . . . . . 1 . . 2 Alerts 4 | . . . . . . . . . . . 2 . . . . 1 . . . 1 Misdirections 15 | . . . . . . . . . . . . . . . . 4 1 . . 10 Weapon Failures 15 | . . . . . . . . . . . 1 . . . . . 1 1 . 12 Overload Shots . | . . . . . . . . . . . . . . . . . . . . . Overflow Damage 7179 | . . . 3 . . 68 99 612 23 31 105 73 . . . 294 132 1140 232 4367 Projectiles 1236 | . . . . . . . . . 23 31 93 . . . . 65 55 284 150 535 Explosions 4059 | . . . 3 . . 23 69 . . . 12 73 . . . 128 . 565 . 3186 Melee 1884 | . . . . . . 45 30 612 . . . . . . . 101 77 291 82 646 Knockbacks 14 | . 1 . . . . . . . 3 1 7 . . . . 1 . . . 1 Impact 1 | . . . . . . . . . . . . . . . . . . . . 1 Kinetic 12 | . 1 . . . . . . . 3 1 6 . . . . 1 . . . . Secondary 1 | . . . . . . . . . . . 1 . . . . . . . . . Self-Inflicted Damage 364 | . . . 41 . . 57 . . . . . 28 . . . . . . . 238 Shots 5 | . . . 1 . . 1 . . . . . 1 . . . . . . . 2 Rammed 1 | . . . . . . . . . . . . . . . . . . . . 1 Targets Rammed 1 | . . . . . . . . . . . . . . . . . . . . 1 Kicked . | . . . . . . . . . . . . . . . . . . . . . Crushed . | . . . . . . . . . . . . . . . . . . . . . Highest Temperature 433 | 40 179 20 66 . . 183 8 323 226 433 349 180 73 . 16 262 219 252 . 232 Average Temperature 69 | 26 59 10 23 . . 27 3 115 70 113 53 50 42 . 9 107 64 70 . 94 Received Heat Transfer 825 | . 84 . 210 . . 121 9 . 8 . 24 24 21 . . 48 . 81 27 168 Effects 2 | . . . . . . . . . . 1 1 . . . . . . . . . Energy Bleed 1 | . . . . . . . . . . . 1 . . . . . . . . . Interference 1 | . . . . . . . . . . 1 . . . . . . . . . . Siege Activations . | . . . . . . . . . . . . . . . . . . . . . Martial Activations . | . . . . . . . . . . . . . . . . . . . . . Shielding Activations . | . . . . . . . . . . . . . . . . . . . . . Robots Disrupted . | . . . . . . . . . . . . . . . . . . . . . Combat Hostiles . | . . . . . . . . . . . . . . . . . . . . . Robots Corrupted 12 | . . . 2 . . . . . . . . . . . . . 3 2 . 5 Combat Hostiles 9 | . . . 2 . . . . . . . . . . . . . . 2 . 5 Parts Fried 28 | . 5 . 12 . . . . . . . . . . . . . 6 1 . 4 Impact Corruptions . | . . . . . . . . . . . . . . . . . . . . . Robots Melted 3 | . . . . . . . . . 1 . . . . . . . . 1 . 1 Combat Hostiles 3 | . . . . . . . . . 1 . . . . . . . . 1 . 1 Parts Melted 7 | . . . 1 . . . . . 4 . . . . . . . . 1 . 1 Heat Transferred 3462 | 100 50 . 75 . . . . 37 200 100 100 . . . . . 150 950 250 1450 Parts Sabotaged . | . . . . . . . . . . . . . . . . . . . . . Parts Stolen . | . . . . . . . . . . . . . . . . . . . . . Parts Stripped . | . . . . . . . . . . . . . . . . . . . . . Power Chain Reactions 2 | . 1 . 1 . . . . . . . . . . . . . . . . . Alert | -11 -10 -10 -10 -7 -7 -5 -5 -5 -5 -4 -4 -4 -4 -4 -3 -3 -3 -2 -2 -2 ------- Run | Yrd Mat Min Sub Rec Scr Fac Upp Upp War Pro Fac Upp Upp Zhi Pro Res Tes Res Qua Frg Maximum Alert Level 5 | . . . . . . 1 . . . . . . . . . 1 1 4 2 5 Low Security (%) 64 | 100 100 100 . 100 . 54 . . . . 100 . . . . 74 97 33 63 19 Level 1 11 | . . . . . . 45 . . . . . . . . . 25 2 2 12 11 Level 2 7 | . . . . . . . . . . . . . . . . . . 27 24 13 Level 3 8 | . . . . . . . . . . . . . . . . . . 36 . 22 Level 4 . | . . . . . . . . . . . . . . . . . . . . 2 Level 5 7 | . . . . . . . . . . . . . . . . . . . . 29 High Security . | . . . . . . . . . . . . . . . . . . . . . Max Security . | . . . . . . . . . . . . . . . . . . . . . Peak Influence 3928 | 5 184 43 . 95 . 337 . . . . 83 . . . . 349 206 1099 689 3928 Initial 614 | . . 43 . 65 . . . . . . . . . . . . 195 34 614 52 Average 396 | . 69 2 . 10 . 146 . . . . 22 . . . . 89 138 489 282 1161 Influence Increases 10649 | 5 456 5 210 181 . 879 205 15 189 152 296 376 50 . . 755 239 1555 368 4713 Destroy 0b10 Robot/C 5360 | . 300 . 200 20 . 400 140 . 120 100 40 260 40 . . 260 20 600 40 2820 Destroy 0b10 Robot/NC 430 | 5 15 5 . . . 30 . . 15 5 35 . . . . 45 40 90 35 110 Destroy Leader 832 | . 82 . 10 . . 64 20 . . 30 14 . 10 . . 52 12 96 12 430 Allied During Kill 239 | . . . . 11 . 56 . . 39 17 . 116 . . . . . . . . Trap Triggered on 0b10 150 | . . . . . . 20 . . . . . . . . . 20 30 80 . . Successful Hack 341 | . 23 . . . . 26 . . . . 25 . . . . 83 51 29 101 3 Select Force Hacks 150 | . . . . 150 . . . . . . . . . . . . . . . . Disable Machine 735 | . . . . . . 30 . . . . 45 . . . . . 60 135 75 390 Destroy Structure 1542 | . 6 . . . . 178 . . . . 122 . . . . 160 26 390 60 600 Partial Spotted 285 | . . . . . . . . . . . 15 . . . . 90 . 75 45 60 Lose Combat Pursuer 585 | . 30 . . . . 75 45 15 15 . . . . . . 45 . 60 . 300 Influence Decreases 6721 | 5 344 117 73 318 . 542 390 167 72 269 292 100 252 78 . 406 526 524 1367 879 Entered New Map 1252 | . . 69 . 72 . . 126 30 . 117 . 3 54 78 . . 154 28 479 42 Time Decay 4540 | 5 344 48 73 246 . 424 254 137 62 132 274 37 198 . . 393 362 446 428 677 Lost Part 276 | . . . . . . 30 10 . 10 . 2 . . . . 4 10 50 . 160 Lost Ally 194 | . . . . . . 88 . . . 20 16 60 . . . . . . 10 . Purge Threat 459 | . . . . . . . . . . . . . . . . 9 . . 450 . Squads Dispatched 78 | . 5 1 . . . 12 . . . . 11 . . . . 13 1 12 4 19 Investigation 29 | . 3 1 . . . 7 . . . . 6 . . . . 3 . 4 . 5 Extermination 25 | . . . . . . 3 . . . . 2 . . . . 6 1 4 4 5 Reinforcement 19 | . 2 . . . . 2 . . . . 3 . . . . 4 . 3 . 5 Assault 2 | . . . . . . . . . . . . . . . . . . 1 . 1 Garrison 3 | . . . . . . . . . . . . . . . . . . . . 3 Intercept . | . . . . . . . . . . . . . . . . . . . . . Searches Triggered . | . . . . . . . . . . . . . . . . . . . . . Construction Impeded 1 | . . . . . . 1 . . . . . . . . . . . . . . Haulers Reinforced 3 | . . . . . . . . . . . 1 . . . . 1 . 1 . . Active Scanning Responses . | . . . . . . . . . . . . . . . . . . . . . Cargo Convoy Interrupts . | . . . . . . . . . . . . . . . . . . . . . Stealth | -11 -10 -10 -10 -7 -7 -5 -5 -5 -5 -4 -4 -4 -4 -4 -3 -3 -3 -2 -2 -2 --------- Run | Yrd Mat Min Sub Rec Scr Fac Upp Upp War Pro Fac Upp Upp Zhi Pro Res Tes Res Qua Frg Distress Signals 17 | . 2 . . . . 1 . . 2 . 2 . . . . . . 6 . 4 Communications Jammed 109 | . . . . . . . . . . . . . . . . 23 . 66 1 19 Distress Signals 108 | . . . . . . . . . . . . . . . . 23 . 65 1 19 Times Spotted 492 | . 26 . 28 1 . 26 5 2 44 5 25 10 2 . . 31 8 60 30 189 Peak Tracking Total 16 | . 7 . 6 1 . 8 4 1 15 2 10 6 2 . . 4 1 8 6 16 Tactical Retreats 54 | . 2 . 1 . . 4 3 1 1 . 5 . . . . 5 . 10 4 18 ECM-based Alert Blocks 53 | . . . . . . . . . . . 14 . . . . 4 . 14 13 8 Traps | -11 -10 -10 -10 -7 -7 -5 -5 -5 -5 -4 -4 -4 -4 -4 -3 -3 -3 -2 -2 -2 ------- Run | Yrd Mat Min Sub Rec Scr Fac Upp Upp War Pro Fac Upp Upp Zhi Pro Res Tes Res Qua Frg Traps Triggered 29 | . 3 . . . . . . . . . 3 . . . . 3 2 2 . 16 Indirectly . | . . . . . . . . . . . . . . . . . . . . . Trap Hack Attempts 120 | . . . . . . . . . . . 21 . . . . 52 27 8 12 . Triggered . | . . . . . . . . . . . . . . . . . . . . . Disarmed 1 | . . . . . . . . . . . . . . . . . . . 1 . Reprogrammed 26 | . . . . . . 1 . . . . 4 . . . . 11 8 2 . . Reused 16 | . . . 1 . . 2 . . . . . . . . . 2 3 8 . . Traps Extracted 11 | . . . . . . . . . . . 4 . . . . 7 . . . . Installed 12 | . . . 1 . . 2 . . . . . . . . . 1 . 8 . . Triggered 15 | . . . . . . 2 . . . . . . . . . 2 3 8 . . Most Traps Carried 11 | . . . 1 . 3 3 1 1 1 1 5 5 5 5 5 11 11 11 3 3 Machines | -11 -10 -10 -10 -7 -7 -5 -5 -5 -5 -4 -4 -4 -4 -4 -3 -3 -3 -2 -2 -2 ---------- Run | Yrd Mat Min Sub Rec Scr Fac Upp Upp War Pro Fac Upp Upp Zhi Pro Res Tes Res Qua Frg Machines Disabled 67 | . . . 4 . . 2 . . 1 . 3 5 . 1 1 . 5 9 5 31 Max in Single Turn 3 | . . . 3 . . 1 . . 1 . 1 1 . 1 1 . 1 2 1 2 Garrison Access 2 | . . . . . . 1 . . . . 1 . . . . . . . . . Machines Repaired . | . . . . . . . . . . . . . . . . . . . . . Machines Dismantled 1 | . . . . . . . . . 1 . . . . . . . . . . . Machines Sabotaged . | . . . . . . . . . . . . . . . . . . . . . Overloaded Fab Kills . | . . . . . . . . . . . . . . . . . . . . . Hacking | -11 -10 -10 -10 -7 -7 -5 -5 -5 -5 -4 -4 -4 -4 -4 -3 -3 -3 -2 -2 -2 --------- Run | Yrd Mat Min Sub Rec Scr Fac Upp Upp War Pro Fac Upp Upp Zhi Pro Res Tes Res Qua Frg Machines Accessed 118 | . 3 1 3 5 3 16 1 . 2 . 16 3 1 5 . 15 9 11 11 13 Terminals 42 | . 3 . . . . 4 . . . . 5 . . . . 7 6 5 7 5 Fabricators 6 | . . . . . . 1 . . . . 2 . . . . 2 . 1 . . Repair Stations 7 | . . . . . . 2 . . . . . . . . . . 1 . 2 2 Recycling Units 25 | . . . . 5 . 6 . . . . 5 . . . . 3 . 3 . 3 Scanalyzers 12 | . . . . . . 2 . . . . 2 . . . . 2 2 1 1 2 Garrison Access 7 | . . . . . . 1 . . . . 2 . . . . 1 . 1 1 1 Total Hacks 267 | . 5 1 6 5 5 37 1 . 5 . 27 5 1 18 . 38 29 24 33 27 Successful 156 | . 3 1 6 5 5 20 1 . 5 . 17 5 1 18 . 15 15 13 15 11 Failed 108 | . 2 . . . . 16 . . . . 10 . . . . 22 13 11 18 16 Catastrophic 16 | . . . . . . 2 . . . . 2 . . . . . . 4 3 5 Database Lockouts 3 | . . . . . . 1 . . . . . . . . . 1 1 . . . Manual 82 | . . . . 5 . 13 . . . . 11 . . . 1 20 4 9 4 15 Terminals 116 | . 5 . . . . 10 . . . . 9 . . . . 18 22 14 23 15 Fabricators 13 | . . . . . . 1 . . . . 6 . . . . 4 . 2 . . Repair Stations 16 | . . . . . . 6 . . . . . . . . . . 1 . 6 3 Recycling Units 41 | . . . . 5 . 11 . . . . 7 . . . . 9 . 4 . 5 Scanalyzers 28 | . . . . . . 7 . . . . 3 . . . . 5 6 3 2 2 Garrison Access 11 | . . . . . . 2 . . . . 2 . . . . 2 . 1 2 2 Terminal Hacks 85 | . 3 1 6 . 5 5 1 . 5 . 3 5 1 18 . 5 10 2 10 5 Record 17 | . . . 4 . 4 . . . . . . 3 . 6 . . . . . . Part Schematic 4 | . . . . . . . . . . . . . . 4 . . . . . . Robot Analysis 4 | . . . . . . . . . . . . . . 4 . . . . . . Prototype ID Bank 8 | . . . . . . . . . 4 . . . . 4 . . . . . . Open Door 8 | . . 1 1 . . . 1 . 1 . . 2 1 . . . 1 . . . Branch Access Points 2 | . . . . . . . . . . . 1 . . . . 1 . . . . Emergency Access Points 1 | . . . . . . . . . . . . . . . . . 1 . . . Terminal Index 1 | . . . . . . . . . . . . . . . . . . . 1 . Garrison Index 1 | . . . . . . . . . . . . . . . . . . . 1 . Alert Level 4 | . . . . . . . . . . . . . . . . . 1 . 1 2 Unreport Threat 4 | . . . . . . . . . . . . . . . . 1 . . 3 . Locate Traps 12 | . 1 . . . . 3 . . . . 2 . . . . 1 2 1 1 1 Reprogram Traps 3 | . . . . . . 1 . . . . . . . . . 1 1 . . . Maintenance Status 2 | . . . . . . . . . . . . . . . . 1 1 . . . Patrol Status 1 | . . . . . . . . . . . . . . . . . 1 . . . Hauler Manifests 4 | . 1 . . . . . . . . . . . . . . . 1 1 1 . Registered Components 3 | . . . . . . 1 . . . . . . . . . . 1 . 1 . Zone Layout 3 | . 1 . . . . . . . . . . . . . . . . . 1 1 Proto ID Catalog 2 | . . . . . 1 . . . . . . . . . . . . . . 1 Release Object 1 | . . . 1 . . . . . . . . . . . . . . . . . Fabricator Hacks 7 | . . . . . . 1 . . . . 4 . . . . 1 . 1 . . Network Status 2 | . . . . . . 1 . . . . . . . . . 1 . . . . Load Schematic 4 | . . . . . . . . . . . 3 . . . . . . 1 . . Build 1 | . . . . . . . . . . . 1 . . . . . . . . . Repair Station Hacks 5 | . . . . . . 3 . . . . . . . . . . . . 2 . Scan Component 4 | . . . . . . 2 . . . . . . . . . . . . 2 . Repair 1 | . . . . . . 1 . . . . . . . . . . . . . . Recycling Unit Hacks 2 | . . . . . . . . . . . . . . . . 2 . . . . Process 1 | . . . . . . . . . . . . . . . . 1 . . . . Retrieve Matter 1 | . . . . . . . . . . . . . . . . 1 . . . . Scanalyzer 14 | . . . . . . 4 . . . . 2 . . . . 1 3 2 1 1 Insert Component 3 | . . . . . . 1 . . . . . . . . . . 1 . . 1 Analyze 1 | . . . . . . 1 . . . . . . . . . . . . . . Retrieve Study 10 | . . . . . . 2 . . . . 2 . . . . 1 2 2 1 . Garrison Access Hacks 2 | . . . . . . 1 . . . . 1 . . . . . . . . . Seal Access 2 | . . . . . . 1 . . . . 1 . . . . . . . . . Unauthorized Hacks 41 | . . . . 5 . 6 . . . . 7 . . . . 6 2 8 2 5 Terminals 15 | . . . . . . . . . . . 2 . . . . 3 2 4 2 2 Track 4 | . . . . . . . . . . . . . . . . . . 3 . 1 Assimilate 2 | . . . . . . . . . . . . . . . . 1 . . 1 . Botnet 7 | . . . . . . . . . . . 1 . . . . 2 1 1 1 1 Operators 2 | . . . . . . . . . . . 1 . . . . . 1 . . . Fabricators 2 | . . . . . . . . . . . 1 . . . . . . 1 . . Recompile 2 | . . . . . . . . . . . 1 . . . . . . 1 . . Repair Stations 1 | . . . . . . . . . . . . . . . . . . . . 1 Patch 1 | . . . . . . . . . . . . . . . . . . . . 1 Recycling Units 23 | . . . . 5 . 6 . . . . 4 . . . . 3 . 3 . 2 Tunnel 5 | . . . . 5 . . . . . . . . . . . . . . . . Fedlink 18 | . . . . . . 6 . . . . 4 . . . . 3 . 3 . 2 Scanalyzers . | . . . . . . . . . . . . . . . . . . . . . Garrison Access . | . . . . . . . . . . . . . . . . . . . . . Data Cores Recovered 1 | . 1 . . . . . . . . . . . . . . . . . . . Used 1 | . 1 . . . . . . . . . . . . . . . . . . . Hacking Detections 70 | . 2 . . . . 11 . . . . 10 . . . . 11 7 9 11 9 Full Trace Events 1 | . . . . . . . . . . . . . . . . . . . . 1 Feedback Events . | . . . . . . . . . . . . . . . . . . . . . Feedback Blocked 1 | . . . . . . . . . . . . . . . . . . . . 1 Robot Schematics Acquired 7 | . . . . . . . . . . . . . . . . . 3 . 4 . Robots Built . | . . . . . . . . . . . . . . . . . . . . . Authchips . | . . . . . . . . . . . . . . . . . . . . . Time . | . . . . . . . . . . . . . . . . . . . . . Total Robot Build Rating . | . . . . . . . . . . . . . . . . . . . . . Part Schematics Acquired 45 | . . . . . . 1 . . . . 6 6 1 5 4 2 4 . 15 1 Parts Built 2 | . . . . . . . . . . . 2 . . . . . . . . . Authchips 1 | . . . . . . . . . . . 1 . . . . . . . . . Time 47 | . . . . . . . . . . . 47 . . . . . . . . . Total Part Build Rating 10 | . . . . . . . . . . . 10 . . . . . . . . . Part Studies Acquired 10 | . . . . . . 2 . . . . 2 . . . . 1 2 2 1 . Parts Repaired 1 | . . . . . . 1 . . . . . . . . . . . . . . Time 56 | . . . . . . 56 . . . . . . . . . . . . . . Parts Recycled . | . . . . . . . . . . . . . . . . . . . . . Recycled Matter 28 | . . . . . . . . . . . . . . . . 28 . . . . Retrieved Matter 28 | . . . . . . . . . . . . . . . . 28 . . . . Retrieved Components . | . . . . . . . . . . . . . . . . . . . . . Parts Scanalyzed 1 | . . . . . . 1 . . . . . . . . . . . . . . Part Schematics Acquired 1 | . . . . . . 1 . . . . . . . . . . . . . . Parts Damaged . | . . . . . . . . . . . . . . . . . . . . . Bothacking | -11 -10 -10 -10 -7 -7 -5 -5 -5 -5 -4 -4 -4 -4 -4 -3 -3 -3 -2 -2 -2 ------------ Run | Yrd Mat Min Sub Rec Scr Fac Upp Upp War Pro Fac Upp Upp Zhi Pro Res Tes Res Qua Frg Used RIF Installer . | . . . . . . . . . . . . . . . . . . . . . Robots Hacked 23 | . . . . . . . . . 3 . . . . . 1 1 8 . 8 2 Non-combat 3 | . . . . . . . . . . . . . . . 1 1 . . . 1 Combat 2 | . . . . . . . . . . . . . . . . . 1 . 1 . Robot Hacks Applied 5 | . . . . . . . . . . . . . . . 1 1 1 . 1 1 parse_system 5 | . . . . . . . . . . . . . . . 1 1 1 . 1 1 Manual 19 | . . . . . . . . . 3 . . . . . . . 7 . 8 1 Relay Couplers Released . | . . . . . . . . . . . . . . . . . . . . . Fabnet Peak Effective % . | . . . . . . . . . . . . . . . . . . . . . Robots Rewired 21 | . . . . 12 . . . . 5 . . 3 . . . . 1 . . . Allies Hacked 1 | . . . . . . 1 . . . . . . . . . . . . . . Hacks Repelled . | . . . . . . . . . . . . . . . . . . . . . Allies | -11 -10 -10 -10 -7 -7 -5 -5 -5 -5 -4 -4 -4 -4 -4 -3 -3 -3 -2 -2 -2 -------- Run | Yrd Mat Min Sub Rec Scr Fac Upp Upp War Pro Fac Upp Upp Zhi Pro Res Tes Res Qua Frg Total Allies 26 | . . . . 12 . . . . 5 . . 6 . . . 1 1 . 1 . Largest Group 12 | . . . . 12 11 11 . . 5 5 2 6 . . . 1 1 . 1 . Highest-Rated Group 282 | . . . . 241 229 229 . . 251 251 123 282 . . . 45 115 . 45 . Highest-Rated Ally 115 | . . . . 40 40 40 . . 64 64 64 48 . . . 45 115 . 45 . Initial UFD Resources 117 | . . . . . . 37 59 59 59 61 61 79 79 79 83 83 99 101 117 117 Total Orders 41 | . . . . . . . . . 9 9 3 19 . . . . 1 . . . STAY 27 | . . . . . . . . . 3 5 1 17 . . . . 1 . . . FOLLOW 13 | . . . . . . . . . 5 4 2 2 . . . . . . . . GUARD 1 | . . . . . . . . . 1 . . . . . . . . . . . Ally Attacks 131 | . . . . 18 . 22 . . 12 21 . 58 . . . . . . . . Total Damage 3263 | . . . . 191 . 524 . . 608 513 . 1427 . . . . . . . . Kills 18 | . . . . 1 . 4 . . 3 2 . 8 . . . . . . . . Allies Corrupted 5 | . . . . . . 4 . . . . . . . . . . 1 . . . Allies Melted 1 | . . . . . . . . . . . . 1 . . . . . . . . Intel | -11 -10 -10 -10 -7 -7 -5 -5 -5 -5 -4 -4 -4 -4 -4 -3 -3 -3 -2 -2 -2 ------- Run | Yrd Mat Min Sub Rec Scr Fac Upp Upp War Pro Fac Upp Upp Zhi Pro Res Tes Res Qua Frg Active Infowar (turns) 21975 | 37 1086 817 4579 . . 1202 525 849 817 529 1091 1006 407 107 380 1766 831 1101 1056 3789 Optics 8566 | . . . 23 . . . . . . . . . . . . 1766 831 1101 1056 3789 Sensors 14258 | . . . . . . 627 525 849 817 529 1023 1006 407 107 380 1766 830 1101 1031 3260 IFF 334 | . . . . . . 124 . . . . 210 . . . . . . . . . Terrain 1017 | . . . . . . 324 . . . . . . . . . 476 217 . . . Seismic 6945 | 37 1086 817 4556 . . 449 . . . . . . . . . . . . . . Cloaking 42 | . . . . . . . . . . . . . . . . . . . 42 . Jamming 6967 | . . . . . . . . . . . . 923 407 69 380 1730 827 998 788 845 ECM 2732 | . . . . . . . . . . . 593 . . . . 1187 2 466 299 185 Robot Analysis Total 4 | . . . . . . . . . . . . . . 4 . . . . . . Derelict Logs Recovered 15 | . . 1 2 . 4 . 1 1 . 2 . 2 2 . . . . . . . Drone Launches . | . . . . . . . . . . . . . . . . . . . . . Drone Recoveries . | . . . . . . . . . . . . . . . . . . . . . Exploration | -11 -10 -10 -10 -7 -7 -5 -5 -5 -5 -4 -4 -4 -4 -4 -3 -3 -3 -2 -2 -2 ------------- Run | Yrd Mat Min Sub Rec Scr Fac Upp Upp War Pro Fac Upp Upp Zhi Pro Res Tes Res Qua Frg Turns Passed 26304 | 125 1086 817 5109 1791 1872 1207 549 849 817 547 1091 1006 407 109 380 1766 831 1101 1056 3788 Spaces Moved 25411 | 61 524 493 2054 596 1191 1269 831 1095 856 716 1587 1471 702 155 664 2483 945 1317 1369 5032 Core 4 | 4 . . . . . . . . . . . . . . . . . . . . Treads 1185 | 57 524 493 111 . . . . . . . . . . . . . . . . . Legs . | . . . . . . . . . . . . . . . . . . . . . Wheels 4035 | . . . 1943 596 1191 305 . . . . . . . . . . . . . . Hover 20187 | . . . . . . 964 831 1095 856 716 1587 1471 702 155 664 2483 945 1317 1369 5032 Flight . | . . . . . . . . . . . . . . . . . . . . . Fastest Speed 36 | 50 160 160 160 190 140 43 48 48 46 46 46 53 53 50 50 47 47 41 36 36 Average Speed 74 | 152 160 160 212 223 153 64 48 48 48 47 47 53 53 51 50 47 51 45 41 39 Slowest Speed 320 | 160 160 160 320 230 190 116 48 48 108 48 53 53 53 53 50 111 116 151 44 104 Overloaded Moves 17 | . . . . . . . . . . . . . . . . . . . 17 . Propulsion Burnouts . | . . . . . . . . . . . . . . . . . . . . . Robots Hopped . | . . . . . . . . . . . . . . . . . . . . . Potential Cave-ins 21 | . . . . . . . . 1 . . 3 . . . . 10 7 . . . Cave-ins Triggered 2 | . . . . . . . . . . . . . . . . 1 1 . . . Teleports 4 | . . . . . . . . . . . . . . . . . . 1 2 1 Exploration Rate (%) 70 | 4 93 79 77 92 88 34 67 91 92 85 33 89 84 60 82 52 75 31 92 82 Regions Visited 20 Branch Regions 15 Pre-discovered Areas 15 | . . . 1 5 2 1 . . . 1 . 2 . 3 . . . . . . Known Exits Taken 15 | . . . 1 . . 1 1 1 1 1 1 1 1 1 1 1 1 1 1 . Unknown Exits Taken 5 | 1 1 1 . 1 1 . . . . . . . . . . . . . . . Scrap Searched 27 | . . 1 5 . 5 . 2 5 . 1 . 5 2 . 1 . . . . . Spaces Dug 308 | . 2 . 5 . . 23 2 37 11 . 38 2 . . . 64 16 44 18 46 Terrain Destroyed 1069 | . 6 . 59 . . 114 59 37 26 21 64 28 23 . . 95 17 178 21 321 Melee 119 | . . . . . . 21 2 9 9 . . . . . . 12 9 35 12 10 Projectile 275 | . 3 . 7 . . 2 . 28 5 21 60 11 2 . . 27 8 14 9 78 AOE 675 | . 3 . 52 . . 91 57 . 12 . 4 17 21 . . 56 . 129 . 233 Terrain Rammed . | . . . . . . . . . . . . . . . . . . . . . Walls Destroyed . | . . . . . . . . . . . . . . . . . . . . . Machines Disabled . | . . . . . . . . . . . . . . . . . . . . . Actions | -11 -10 -10 -10 -7 -7 -5 -5 -5 -5 -4 -4 -4 -4 -4 -3 -3 -3 -2 -2 -2 --------- Run | Yrd Mat Min Sub Rec Scr Fac Upp Upp War Pro Fac Upp Upp Zhi Pro Res Tes Res Qua Frg Total 31317 | 79 699 521 2547 1061 1241 1569 964 1361 1214 900 1833 1665 730 181 708 2960 1241 1686 1802 6355 Wait 3063 | 1 93 18 235 249 25 107 101 201 222 167 102 156 22 15 39 244 134 182 287 463 Move 25387 | 60 523 492 2053 595 1190 1268 830 1094 855 715 1586 1470 701 154 663 2481 943 1316 1368 5030 Hop . | . . . . . . . . . . . . . . . . . . . . . Pick Up 255 | 5 14 2 27 14 13 26 1 3 12 . 14 1 . 3 1 17 19 12 17 54 Fast Attach 87 | 7 2 . . 1 1 8 1 2 8 1 2 . . 1 . 6 10 5 5 27 Attach 95 | . . 1 6 . 1 27 1 . 3 1 4 1 . 2 . 9 1 11 5 22 Detach 53 | . 2 1 2 1 . 9 2 1 1 1 . 1 . 1 . 3 4 2 2 20 Swap 460 | . 16 3 85 . 4 30 5 3 14 1 17 2 2 3 . 25 25 26 30 169 Drop 275 | . 9 3 28 8 7 29 2 3 21 2 14 . . 1 1 25 27 7 18 70 Fire 751 | 6 40 1 85 . . 28 5 29 20 12 73 31 5 1 3 47 27 49 19 270 Melee 319 | . . . 25 . . 34 16 25 11 . . 3 . . 1 33 23 49 39 60 Ram 1 | . . . . . . . . . . . . . . . . . . . . 1 Kick . | . . . . . . . . . . . . . . . . . . . . . Crush . | . . . . . . . . . . . . . . . . . . . . . Escape Stasis 108 | . . . . . . . . . . . . . . . . 17 1 11 . 79 Rewire 232 | . . . . 193 . . . . 39 . . . . . . . . . . . Trap 132 | . . . 1 . . 2 . . . . 21 . . . . 53 27 16 12 . Miscellaneous 99 | . . . . . . 1 . . 8 . . . . . . . . . . 90 Route ------- -11/Scrapyard -10/Materials (discovered 5 exits: [*Mat x3] / *Min / *Sub) -10/Mines (discovered 3 exits: [*Mat x2] / *Sub) -10/Subcaves (discovered 3 exits: [*Mat] / *Rec / *Scr) -7/Recycling (discovered 2 exits: *Fac / *Scr) -7/Scraptown (discovered 2 exits: *Fac x2) -5/Factory (discovered 5 exits: *Fac x3 / *Upp x2) -5/Upper Caves -5/Upper Caves (discovered 2 exits: *Fac / *War) -5/Warlord -4/Proximity Caves -4/Factory (discovered 4 exits: *Res / *Upp x2 / Arm) -4/Upper Caves -4/Upper Caves (discovered 2 exits: *Res / *Zhi) -4/Zhirov -3/Proximity Caves -3/Research (discovered 5 exits: *Res x3 / *Tes x2) -3/Testing -2/Research (discovered 2 exits: *Qua x2) -2/Quarantine (discovered 3 exits: *Acc / *Sec / *Frg) -2/Protoforge 0bPrime History --------- Turn | Location | Event 3 | -11/Scrapyard | Discovered new exit (range 15) 126 | -11/Scrapyard | Entered Materials 254 | -10/Materials | Discovered new exit (range 8) 323 | -10/Materials | Build established: Mutant 492 | -10/Materials | Discovered new exit (range 10) 710 | -10/Materials | Discovered new exit (range 6) 787 | -10/Materials | Discovered new exit (range 16) 826 | -10/Materials | Derelicts attacked the area 1037 | -10/Materials | Discovered new exit (range 15) 1212 | -10/Materials | Entered Mines 1256 | -10/Mines | Met a Derelict shopkeep closing up shop 1535 | -10/Mines | Found a damaged Exp. Sensor Array with a note attached 1544 | -10/Mines | Found Prototype Device 1587 | -10/Mines | Discovered new exit (range 13) 1730 | -10/Mines | Discovered new exit (range 5) 1810 | -10/Mines | Learned Materials emergency access door positions 1826 | -10/Mines | Discovered new exit (range 14) 2029 | -10/Mines | Entered Subcaves 2030 | -10/Subcaves | Approached by a straggling Scientist 2173 | -10/Subcaves | Shifting Twisted Machinery released Battle Rifle 2199 | -10/Subcaves | Shifting Twisted Machinery released Scrap Shield 2305 | -10/Subcaves | Scientist uncovered a shortcut to Scraptown 2726 | -10/Subcaves | Shifting Twisted Machinery released Scrap Shield 3232 | -10/Subcaves | Discovered new exit (range 11) 4127 | -10/Subcaves | A swath of the cavern ceiling suddenly collapsed 4894 | -10/Subcaves | Disturbed a concealed Subdweller 5112 | -10/Subcaves | Core integrity fell below 50% 5499 | -10/Subcaves | Shifting Twisted Machinery released Sub. Monowheel 5501 | -10/Subcaves | Shifting Twisted Machinery released Mak. Spear 5593 | -10/Subcaves | Identified exit to Recycling 5614 | -10/Subcaves | Visited Clippyterm 5621 | -10/Subcaves | Learned 40 Factory zone layouts 5816 | -10/Subcaves | A swath of the cavern ceiling suddenly collapsed 6510 | -10/Subcaves | Learned location of Zion (-6) 6549 | -10/Subcaves | Found SUBCON Basin 6810 | -10/Subcaves | Build established: Scavenger-Mutant 7138 | -10/Subcaves | Entered Recycling 7358 | -7/Recycling | Build established: Mutant 7764 | -7/Recycling | Discovered new exit (range 16) 8251 | -7/Recycling | Build established: Commander-Mutant 8253 | -7/Recycling | Scanned before Scraplab entrance 8449 | -7/Recycling | Entered Scraplab 8879 | -7/Recycling | Discovered new exit (range 2) 8929 | -7/Recycling | Entered Scraptown 8929 | -7/Scraptown | Accompanied by 11 allies 9054 | -7/Scraptown | Visited Spacefarers 9086 | -7/Scraptown | Visited Red Mages 9242 | -7/Scraptown | Discovered new exit (range 13) 9339 | -7/Scraptown | Scanned Subdweller tech in exchange for log data 9347 | -7/Scraptown | Learned Research stockpile data 9348 | -7/Scraptown | Learned 8 Factory zone layouts 9643 | -7/Scraptown | Heard Great Nut preacher, LISTEN AND RECITE! 9776 | -7/Scraptown | Visited TADAMA 9803 | -7/Scraptown | Visited Assassins FH 9860 | -7/Scraptown | Visited Awakened 9891 | -7/Scraptown | Visited The Evicted 9913 | -7/Scraptown | Visited Cyclists 9933 | -7/Scraptown | Visited UFD Registry 9933 | -7/Scraptown | Registered with UFD as "Softback" 9962 | -7/Scraptown | Entered Cyclist Reading Room 10102 | -7/Scraptown | Delivered Scrap Shield to a Scientist 10166 | -7/Scraptown | Visited Abandonware Association 10176 | -7/Scraptown | Learned abandonware demo "OVRCLOCK.EXE" 10182 | -7/Scraptown | Learned abandonware demo "MELTYB.EXE" 10212 | -7/Scraptown | Visited Chapter 10 10256 | -7/Scraptown | Visited Research Penetration Think Tank 10334 | -7/Scraptown | Visited LU-1G1's Boring Crew 10411 | -7/Scraptown | Visited A0-MCA Data Center 10420 | -7/Scraptown | Given a B+ rating by A0-MCA 10427 | -7/Scraptown | Found A0-MCA's Component Scanner 10456 | -7/Scraptown | Visited Science Testing Area 10471 | -7/Scraptown | Visited DA-N13 Charitable Foundation 10477 | -7/Scraptown | Found DCF Scrap (29 items) 10525 | -7/Scraptown | Visited Scrap Suit Storage 10548 | -7/Scraptown | Visited Science Guys 10697 | -7/Scraptown | Met Optimus 10697 | -7/Scraptown | Accepted into 0bPrime 10768 | -7/Scraptown | Discovered new exit (range 5) 10801 | -7/Scraptown | Entered Factory 10801 | -5/Factory | Accompanied by 11 allies 10801 | -5/Factory | Evolved 10 slots: Power x1, Propulsion x4, Utility x5 10802 | -5/Factory | Identified exit to Factory 10802 | -5/Factory | Identified exit to Upper Caves 11155 | -5/Factory | Lost 7 allies 11205 | -5/Factory | Loaded intel: 8 recycling unit locations 11238 | -5/Factory | Identified Exp. Sensor Array 11476 | -5/Factory | Destroyed 7 combat bots 11525 | -5/Factory | Repaired Antigrav System 11604 | -5/Factory | Build established: Hacker-Mutant 11621 | -5/Factory | Learned location of Protoforge (-2) 12003 | -5/Factory | Central database locked down 12008 | -5/Factory | Entered Upper Caves 12010 | -5/Upper Caves | UFD Scientist delivered a prototype 12053 | -5/Upper Caves | Found Prototype Protection 12053 | -5/Upper Caves | Identified Enh. Scrap Shield 12190 | -5/Upper Caves | Attracted the attention of an 0b10 checkpoint 12368 | -5/Upper Caves | Learned 8 Factory zone layouts 12500 | -5/Upper Caves | Build established: Mutant 12521 | -5/Upper Caves | Discovered new exit (range 12) 12531 | -5/Upper Caves | Identified exit to Upper Caves 12557 | -5/Upper Caves | Entered another Upper Caves area 12572 | -5/Upper Caves | Discovered exit to Factory (range 16) 13218 | -5/Upper Caves | Spotted B-75 Beast 13335 | -5/Upper Caves | Identified exit to Warlord 13406 | -5/Upper Caves | Entered Warlord 13431 | -5/Warlord | Discovered new exit (range 14) 13626 | -5/Warlord | Visited the Vortex Lab 13629 | -5/Warlord | Found Prototype Energy Cannon 13629 | -5/Warlord | Identified Vortex Cannon 13630 | -5/Warlord | Warlord's base attacked by MAIN.C 13631 | -5/Warlord | Found Prototype Energy Gun 13631 | -5/Warlord | Identified Vortex Rail 13636 | -5/Warlord | Found Vortex Cannon 13642 | -5/Warlord | Found Prototype Launcher 13644 | -5/Warlord | Found Vortex Rail 13688 | -5/Warlord | Rebuked by Warlord 13717 | -5/Warlord | Found Prototype Processor 13719 | -5/Warlord | Identified Vortex Catalyst Activator 13726 | -5/Warlord | Found Prototype Device 13733 | -5/Warlord | Identified Exp. Focal Shield 13782 | -5/Warlord | Identified Spectral Analyzer 13980 | -5/Warlord | Warlord forces counterattacked 14011 | -5/Warlord | Found Prototype Ballistic Cannon 14011 | -5/Warlord | Identified Hvy. Autocannon 14047 | -5/Warlord | Lost 3 allies 14098 | -5/Warlord | Lost 3 allies 14098 | -5/Warlord | Spotted Striker 14106 | -5/Warlord | Spotted Executioner 14136 | -5/Warlord | Build established: Commander-Mutant 14154 | -5/Warlord | Allies destroyed OL-54S(g) 14156 | -5/Warlord | Found Prototype Processor 14156 | -5/Warlord | Identified Exp. Core Analyzer 14172 | -5/Warlord | Spotted Executioner 14200 | -5/Warlord | Identified exit to Proximity Caves 14220 | -5/Warlord | Lost 14 allies 14223 | -5/Warlord | Entered Proximity Caves 14223 | -4/Proximity Caves | Accompanied by 5 allies 14392 | -4/Proximity Caves | Learned Research terminal intel 14506 | -4/Proximity Caves | Attracted the attention of an 0b10 checkpoint 14507 | -4/Proximity Caves | Build established: Scavenger-Mutant 14665 | -4/Proximity Caves | Discovered exit to Factory (range 12) 14770 | -4/Proximity Caves | Entered Factory 14770 | -4/Factory | Accompanied by 2 allies 14770 | -4/Factory | Evolved 2 slots: Utility x2 14915 | -4/Factory | Discovered new exit (range 5) 14940 | -4/Factory | Loaded intel: 8 recycling unit locations 15181 | -4/Factory | Identified exit to Upper Caves 15181 | -4/Factory | Identified exit to Armory 15460 | -4/Factory | Tech Extrapolator generated special schematic: Energy Deflector 15572 | -4/Factory | Discovered new exit (range 5) 15585 | -4/Factory | Identified exit to Research 15810 | -4/Factory | Fabricated Cmb. Airjet? 15861 | -4/Factory | Entered Upper Caves 16135 | -4/Upper Caves | Attacked by a delusional Derelict stockpiling Unaware 16136 | -4/Upper Caves | Build established: Scientist-Mutant 16334 | -4/Upper Caves | Entered an active Warlord outpost 16338 | -4/Upper Caves | A Commander dispatched an escort 16443 | -4/Upper Caves | Discovered new exit (range 12) 16463 | -4/Upper Caves | Identified exit to Upper Caves 16474 | -4/Upper Caves | Learned Research stockpile data 16778 | -4/Upper Caves | Attracted the attention of an 0b10 base 16805 | -4/Upper Caves | Lost 3 allies 16867 | -4/Upper Caves | Entered another Upper Caves area 16867 | -4/Upper Caves | Accompanied by 3 allies 16868 | -4/Upper Caves | Commander's escort returned to base 16868 | -4/Upper Caves | Commander's escort returned to base 16870 | -4/Upper Caves | Discovered exit to Research (range 10) 16906 | -4/Upper Caves | Learned 8 Research zone layouts 16908 | -4/Upper Caves | Learned Research emergency access door positions 17262 | -4/Upper Caves | Discovered new exit (range 16) 17272 | -4/Upper Caves | Identified exit to Zhirov 17274 | -4/Upper Caves | Entered Zhirov 17274 | -4/Zhirov | Discovered new exit (range 3) 17294 | -4/Zhirov | Learned location of Quarantine (-2) 17294 | -4/Zhirov | Learned location of Command (-1) 17325 | -4/Zhirov | Found Alien Artifact 17325 | -4/Zhirov | Identified Integrated Dissipator 17325 | -4/Zhirov | Installed Integrated Dissipator, increased core heat dissipation (+20) 17359 | -4/Zhirov | Found Alien Artifact 17378 | -4/Zhirov | Cloak Generator disabled 17383 | -4/Zhirov | Identified exit to Proximity Caves 17383 | -4/Zhirov | Entered Proximity Caves 17412 | -3/Proximity Caves | Acquired the password to a Derelict Tinkerer's latest research 17507 | -3/Proximity Caves | Tech Extrapolator generated special schematic: Machine Rigger 17606 | -3/Proximity Caves | Found DCF Scrap (11 items) 17761 | -3/Proximity Caves | Discovered exit to Research (range 4) 17763 | -3/Proximity Caves | Entered Research 17763 | -3/Research | Evolved 2 slots: Utility x2 17767 | -3/Research | Loaded intel: 23 terminal locations 17783 | -3/Research | Tech Extrapolator generated special schematic: Heat Bomb Trap 17826 | -3/Research | Loaded intel: 5 recycling unit locations 17867 | -3/Research | Tech Extrapolator generated special schematic: Deep Structural Scanner 18214 | -3/Research | Crushed by falling debris 18290 | -3/Research | Discovered new exit (range 5) 18313 | -3/Research | Identified exit to Research 18337 | -3/Research | Spotted B-86 Titan 18346 | -3/Research | Central database locked down 18525 | -3/Research | Build established: Trapper-Scout 18691 | -3/Research | Found Prototype Device 18694 | -3/Research | Identified Exp. EM Disruption Field 18773 | -3/Research | System corruption reached 10% 18844 | -3/Research | Build established: Trapper-Ninja 19074 | -3/Research | Identified exit to Testing 19112 | -3/Research | Destroyed 7 combat bots 19426 | -3/Research | Discovered exit to Research (range 14) 19449 | -3/Research | Discovered exit to Research (range 10) 19529 | -3/Research | Entered Testing 19697 | -3/Testing | Crushed by falling debris 19719 | -3/Testing | Found Prototype Energy Cannon 19719 | -3/Testing | Identified Null Cannon 19792 | -3/Testing | Found Prototype Protection 19792 | -3/Testing | Identified Hvy. Regenerative Plating 19794 | -3/Testing | Found Prototype Protection 19794 | -3/Testing | Identified Lgt. Regenerative Plating 19797 | -3/Testing | Found Prototype Protection 19797 | -3/Testing | Identified Med. Regenerative Plating 19835 | -3/Testing | Watched by a mysterious "MATRIX" hacker. 19849 | -3/Testing | Found Prototype Processor 19907 | -3/Testing | Identified Exp. Signal Interpreter 19921 | -3/Testing | Discovered exit to Research (range 17) 19948 | -3/Testing | Found Prototype Device 19951 | -3/Testing | Identified Exp. Thermal Shield 19955 | -3/Testing | Found Prototype Hackware 20128 | -3/Testing | Rewired PL-0VB7WTLQ07 20141 | -3/Testing | Identified Ghost Barrier 20145 | -3/Testing | Found Hellfire Missile Launcher 20177 | -3/Testing | Destroyed PL-0VB7WTLQ07 20356 | -3/Testing | Central database locked down 20360 | -3/Testing | Entered Research 20360 | -2/Research | Evolved 2 slots: Propulsion x1, Utility x1 20361 | -2/Research | Identified exit to Quarantine 20454 | -2/Research | Spotted B-90 Cyclops 20516 | -2/Research | Loaded intel: 5 recycling unit locations 20829 | -2/Research | Build established: Hacker-Ninja 20924 | -2/Research | Spotted B-90 Cyclops 21066 | -2/Research | Identified Transdimensional Reconstructor 21066 | -2/Research | Warped through subspace 21097 | -2/Research | Lost 4 parts (1p2n1u) 21133 | -2/Research | Discovered exit to Quarantine (range 2) 21344 | -2/Research | Spotted B-90 Cyclops 21360 | -2/Research | First assault squad dispatched 21396 | -2/Research | Destroyed 8 combat bots 21461 | -2/Research | Entered Quarantine 21524 | -2/Quarantine | Found Alien Artifact 21524 | -2/Quarantine | Identified Dimensional Node Initializer 21524 | -2/Quarantine | Initialized slip node 21530 | -2/Quarantine | Found Transdimensional Reconstructor 21733 | -2/Quarantine | Spotted Alpha 7 21939 | -2/Quarantine | Found Prototype Launcher 21940 | -2/Quarantine | Identified Point Singularity Launcher 21948 | -2/Quarantine | Discovered new exit (range 5) 21977 | -2/Quarantine | Found Alien Artifact 22005 | -2/Quarantine | Found Prototype Reactor 22012 | -2/Quarantine | Identified Zero-point Reactor 22033 | -2/Quarantine | Warped through subspace to slip node 22036 | -2/Quarantine | Found Dimensional Node Initializer 22041 | -2/Quarantine | Found Transdimensional Reconstructor 22046 | -2/Quarantine | Found Transdimensional Reconstructor 22047 | -2/Quarantine | Identified Subatomic Replicator 22047 | -2/Quarantine | Used Subatomic Replicator to create Alien Artifact 22142 | -2/Quarantine | Warped through subspace to slip node 22289 | -2/Quarantine | Spotted Fortress 22316 | -2/Quarantine | Discovered new exit (range 6) 22316 | -2/Quarantine | Discovered new exit (range 7) 22317 | -2/Quarantine | Identified exit to Section 7 22319 | -2/Quarantine | Identified exit to Protoforge 22517 | -2/Quarantine | Entered Protoforge 22534 | -2/Protoforge | Identified Supercharged TR 22590 | -2/Protoforge | Spotted Hotshot 22590 | -2/Protoforge | Spotted Hotshot 22653 | -2/Protoforge | Discovered new exit (range 11) 22725 | -2/Protoforge | Superfortress began startup sequence 22806 | -2/Protoforge | Found Prototype Device 22806 | -2/Protoforge | Identified Cep. Weapon Articulator 22813 | -2/Protoforge | Found Prototype Storage 22813 | -2/Protoforge | Identified Cep. Chromion Battery 23032 | -2/Protoforge | Spotted Decapitator 23032 | -2/Protoforge | Spotted Decapitator 23095 | -2/Protoforge | Spotted Decapitator 23096 | -2/Protoforge | Spotted Decapitator 23097 | -2/Protoforge | Spotted Decapitator 23100 | -2/Protoforge | Destroyed Decapitator 23102 | -2/Protoforge | Destroyed Decapitator 23102 | -2/Protoforge | Destroyed Decapitator 23102 | -2/Protoforge | Destroyed Decapitator 23106 | -2/Protoforge | Destroyed Decapitator 23115 | -2/Protoforge | Found Prototype Slashing Weapon 23115 | -2/Protoforge | Identified Exp. Terror Saw 23129 | -2/Protoforge | Destroyed 7 combat bots 23133 | -2/Protoforge | Lost 4 parts (3n1w) 23141 | -2/Protoforge | Found Prototype Protection 23141 | -2/Protoforge | Identified Cep. Core Shell 23208 | -2/Protoforge | Found Cep. Core Shell 23212 | -2/Protoforge | Found Prototype Device 23218 | -2/Protoforge | Spotted Decapitator 23218 | -2/Protoforge | Spotted Decapitator 23218 | -2/Protoforge | Spotted Decapitator 23218 | -2/Protoforge | Spotted Decapitator 23243 | -2/Protoforge | Found Cep. Antigrav Storage Unit 23245 | -2/Protoforge | Found Cep. NT7 Matterbank 23273 | -2/Protoforge | Spotted V405-q 23273 | -2/Protoforge | Spotted V932-l 23273 | -2/Protoforge | Found Cep. Arcsight Missile Launcher 23274 | -2/Protoforge | Spotted V473-x 23274 | -2/Protoforge | Spotted V293-r 23275 | -2/Protoforge | Found Prototype Launcher 23275 | -2/Protoforge | Identified Cep. Smart ZDS 23280 | -2/Protoforge | Found Cep. Smart ZDS 23317 | -2/Protoforge | Garrison activated, responded to threat 23357 | -2/Protoforge | Identified Crosscalibrator 23360 | -2/Protoforge | Found Faulty Cep. Matter Streamer 23364 | -2/Protoforge | Found Faulty Cep. Matter Streamer 23482 | -2/Protoforge | Destroyed Decapitator 23482 | -2/Protoforge | Destroyed Decapitator 23482 | -2/Protoforge | Destroyed Decapitator 23491 | -2/Protoforge | Destroyed Decapitator 23538 | -2/Protoforge | Destroyed 7 combat bots 23672 | -2/Protoforge | System corruption reached 10% 23696 | -2/Protoforge | Spotted V456-u 23732 | -2/Protoforge | Spotted Decapitator 23732 | -2/Protoforge | Spotted Decapitator 23732 | -2/Protoforge | Spotted Decapitator 23732 | -2/Protoforge | Spotted Decapitator 23735 | -2/Protoforge | Destroyed Decapitator 23735 | -2/Protoforge | Destroyed Decapitator 23735 | -2/Protoforge | Destroyed Decapitator 23748 | -2/Protoforge | Destroyed Decapitator 23777 | -2/Protoforge | Lost 3 parts (2n1w) 23795 | -2/Protoforge | Spotted Immortal 23796 | -2/Protoforge | Spotted Immortal 23804 | -2/Protoforge | Spotted V507-k 23804 | -2/Protoforge | Spotted V668-o 23810 | -2/Protoforge | Build established: Scavenger-Ninja 23831 | -2/Protoforge | Destroyed Immortal 23839 | -2/Protoforge | Spotted V593-n 24021 | -2/Protoforge | Found Faulty Cep. Gyrokinetic System 24023 | -2/Protoforge | Found Cep. Combat Aerolev Unit 24025 | -2/Protoforge | Found Cep. Gyrokinetic System 24039 | -2/Protoforge | Found Faulty Cep. Gyrokinetic System 24048 | -2/Protoforge | Found Cep. Combat Aerolev Unit 24051 | -2/Protoforge | Found Cep. Combat Aerolev Unit 24069 | -2/Protoforge | Spotted AP7-3 24069 | -2/Protoforge | Spotted AP7-3 24241 | -2/Protoforge | Found Cep. Projectile Intercept Suite 24244 | -2/Protoforge | Found Cep. Core Shell 24247 | -2/Protoforge | Found Exp. Remote Shield 24278 | -2/Protoforge | Found Prototype Device 24278 | -2/Protoforge | Identified Exp. Shock Absorption System 24280 | -2/Protoforge | Found Prototype Device 24280 | -2/Protoforge | Identified Adv. Particle Accelerator 24286 | -2/Protoforge | Found Cep. Beam Splitter 24288 | -2/Protoforge | Found Prototype Device 24288 | -2/Protoforge | Identified Cep. Phase Shift Module 24320 | -2/Protoforge | Found Faulty Cep. Zero-point Core 24323 | -2/Protoforge | Spotted V490-a 24324 | -2/Protoforge | Spotted V021-t 24326 | -2/Protoforge | Found Faulty Cep. Zero-point Core 24402 | -2/Protoforge | Found Exp. Remote Shield 24517 | -2/Protoforge | First assault squad dispatched 24530 | -2/Protoforge | Found Cep. Concussive Dispersal Blaster 24535 | -2/Protoforge | Found Prototype Energy Gun 24535 | -2/Protoforge | Identified Cep. Variable Chargecaster 24539 | -2/Protoforge | Found Cep. Variable Chargecaster 24555 | -2/Protoforge | Spotted EXE-6 24556 | -2/Protoforge | Spotted EXE-6 24569 | -2/Protoforge | Spotted SKR-2 24576 | -2/Protoforge | UFD initiated attack on Protoforge (Readiness: High) 24576 | -2/Protoforge | Loaded intel: 3 recycling unit locations 24596 | -2/Protoforge | Found Prototype Ballistic Gun 24596 | -2/Protoforge | Identified Cep. XC Strikerail 24603 | -2/Protoforge | Found Cep. XC Strikerail 24605 | -2/Protoforge | Found Prototype Processor 24605 | -2/Protoforge | Identified Exp. Armor Integrity Analyzer 24612 | -2/Protoforge | Optimus greeted in Protoforge 24612 | -2/Protoforge | Initialized slip node 24646 | -2/Protoforge | Warped through subspace to slip node 24647 | -2/Protoforge | Optimus attacked Superfortress 24650 | -2/Protoforge | Spotted Striker 24657 | -2/Protoforge | Spotted Immortal 24668 | -2/Protoforge | Found Prototype Device 24668 | -2/Protoforge | Identified Thermal Barrier 24671 | -2/Protoforge | Found Prototype Device 24671 | -2/Protoforge | Identified Cep. Antimissile System 24674 | -2/Protoforge | Found Exp. Jetlance 24678 | -2/Protoforge | Found Cep. Zero-point Core 24681 | -2/Protoforge | Found Cep. NT7 Matterbank 24693 | -2/Protoforge | Lost 7 allies 24694 | -2/Protoforge | Found UFD Drillbomb 24717 | -2/Protoforge | Found Cep. XC Strikerail 24720 | -2/Protoforge | Found Exp. Kinecellerator 24729 | -2/Protoforge | Spotted AP7-3 24733 | -2/Protoforge | Spotted AP7-3 24749 | -2/Protoforge | Found Prototype Processor 24749 | -2/Protoforge | Identified Exp. Targeting Computer 24752 | -2/Protoforge | Found Prototype Processor 24752 | -2/Protoforge | Identified Exp. Target Analyzer 24757 | -2/Protoforge | Found Cep. XC Strikerail 24760 | -2/Protoforge | Found Cep. XC Strikerail 24773 | -2/Protoforge | Lost 5 allies 24782 | -2/Protoforge | Spotted Striker 24787 | -2/Protoforge | Spotted Striker 24791 | -2/Protoforge | Destroyed Striker 24879 | -2/Protoforge | Installed UFD Drillbomb at designated target 24879 | -2/Protoforge | UFD reported confirmed Drillbomb installation 24889 | -2/Protoforge | Build established: Scavenger-Scout 24914 | -2/Protoforge | Found UFD Drillbomb 24930 | -2/Protoforge | Spotted Overlord 24967 | -2/Protoforge | Installed UFD Drillbomb at designated target 24967 | -2/Protoforge | UFD reported confirmed Drillbomb installation 24970 | -2/Protoforge | Spotted Hotshot 24971 | -2/Protoforge | Spotted Hotshot 24981 | -2/Protoforge | Destroyed Hotshot 25005 | -2/Protoforge | Destroyed Hotshot 25018 | -2/Protoforge | Spotted Hotshot 25026 | -2/Protoforge | Spotted Hotshot 25034 | -2/Protoforge | Found UFD Drillbomb 25054 | -2/Protoforge | Installed UFD Drillbomb at designated target 25054 | -2/Protoforge | UFD reported confirmed Drillbomb installation 25091 | -2/Protoforge | Spotted Striker 25101 | -2/Protoforge | Spotted Decapitator 25102 | -2/Protoforge | Spotted Decapitator 25104 | -2/Protoforge | Spotted Decapitator 25104 | -2/Protoforge | Spotted Decapitator 25106 | -2/Protoforge | Destroyed Decapitator 25106 | -2/Protoforge | Destroyed Decapitator 25110 | -2/Protoforge | Spotted Executioner 25113 | -2/Protoforge | Spotted Decapitator 25117 | -2/Protoforge | Destroyed Decapitator 25121 | -2/Protoforge | Spotted Striker 25124 | -2/Protoforge | Spotted Striker 25131 | -2/Protoforge | Lost 4 allies 25138 | -2/Protoforge | Destroyed 7 combat bots 25140 | -2/Protoforge | Destroyed Decapitator 25140 | -2/Protoforge | Destroyed Decapitator 25154 | -2/Protoforge | Destroyed Striker 25210 | -2/Protoforge | Destroyed 8 combat bots 25214 | -2/Protoforge | Spotted Executioner 25221 | -2/Protoforge | Destroyed Executioner 25223 | -2/Protoforge | Destroyed Executioner 25225 | -2/Protoforge | P-80 Master assimilated allied 02F74-D 25246 | -2/Protoforge | Found UFD Drillbomb 25284 | -2/Protoforge | Installed UFD Drillbomb at designated target 25284 | -2/Protoforge | UFD reported confirmed Drillbomb installation 25307 | -2/Protoforge | Spotted Executioner 25307 | -2/Protoforge | Spotted Executioner 25307 | -2/Protoforge | Spotted Striker 25309 | -2/Protoforge | Spotted Striker 25309 | -2/Protoforge | Destroyed Executioner 25311 | -2/Protoforge | Destroyed Executioner 25313 | -2/Protoforge | Destroyed Executioner 25331 | -2/Protoforge | Destroyed Striker 25344 | -2/Protoforge | Spotted Immortal 25352 | -2/Protoforge | Destroyed 10 combat bots 25362 | -2/Protoforge | Destroyed Executioner 25385 | -2/Protoforge | Lost 7 allies 25394 | -2/Protoforge | Spotted Striker 25394 | -2/Protoforge | Spotted Executioner 25394 | -2/Protoforge | Found UFD Drillbomb 25401 | -2/Protoforge | Destroyed Executioner 25405 | -2/Protoforge | Destroyed Striker 25426 | -2/Protoforge | Destroyed 14 combat bots 25486 | -2/Protoforge | Installed UFD Drillbomb at designated target 25486 | -2/Protoforge | UFD reported confirmed Drillbomb installation 25534 | -2/Protoforge | Spotted Executioner 25541 | -2/Protoforge | Spotted Executioner 25543 | -2/Protoforge | Core integrity fell below 50% 25564 | -2/Protoforge | Destroyed Executioner 25564 | -2/Protoforge | Destroyed Executioner 25584 | -2/Protoforge | Found UFD Drillbomb 25585 | -2/Protoforge | Spotted Executioner 25586 | -2/Protoforge | Spotted Executioner 25592 | -2/Protoforge | Destroyed Executioner 25597 | -2/Protoforge | Lost 5 allies 25604 | -2/Protoforge | Destroyed Executioner 25610 | -2/Protoforge | Spotted Executioner 25610 | -2/Protoforge | Spotted Executioner 25642 | -2/Protoforge | Destroyed 14 combat bots 25656 | -2/Protoforge | Lost 6 allies 25670 | -2/Protoforge | Installed UFD Drillbomb at designated target 25670 | -2/Protoforge | UFD reported confirmed Drillbomb installation 25734 | -2/Protoforge | Found UFD Drillbomb 25830 | -2/Protoforge | Spotted Striker 25884 | -2/Protoforge | Installed UFD Drillbomb at designated target 25884 | -2/Protoforge | UFD reported confirmed Drillbomb installation 25916 | -2/Protoforge | Spotted Executioner 25917 | -2/Protoforge | Spotted Executioner 25948 | -2/Protoforge | Destroyed Executioner 25958 | -2/Protoforge | Spotted Immortal 25959 | -2/Protoforge | Spotted Immortal 25959 | -2/Protoforge | Spotted Immortal 25961 | -2/Protoforge | Found UFD Drillbomb 25975 | -2/Protoforge | Destroyed 8 combat bots 26042 | -2/Protoforge | UFD reported confirmed Drillbomb installation 26061 | -2/Protoforge | Spotted Striker 26065 | -2/Protoforge | Spotted Executioner 26066 | -2/Protoforge | Destroyed Immortal 26074 | -2/Protoforge | Destroyed Striker 26131 | -2/Protoforge | Destroyed 10 combat bots 26131 | -2/Protoforge | Installed UFD Drillbomb at designated target 26131 | -2/Protoforge | UFD reported confirmed Drillbomb installation 26132 | -2/Protoforge | Spotted Striker 26132 | -2/Protoforge | Spotted Executioner 26143 | -2/Protoforge | Destroyed Striker 26158 | -2/Protoforge | Found UFD Drillbomb 26166 | -2/Protoforge | Spotted Striker 26205 | -2/Protoforge | Installed UFD Drillbomb at designated target 26205 | -2/Protoforge | UFD reported confirmed Drillbomb installation 26206 | -2/Protoforge | UFD began Drillbomb countdown 26206 | -2/Protoforge | Identified exit to Access 26215 | -2/Protoforge | Spotted Striker 26217 | -2/Protoforge | Spotted Executioner 26253 | -2/Protoforge | Destroyed Executioner 26263 | -2/Protoforge | Destroyed Striker 26299 | -2/Protoforge | Destroyed Executioner 26306 | *** | Defending 0bPrime! Last Messages --------------- needed for you. 26301_ Destroyed Arm. Huge Wheel. 26301_ C-45 Heavy ARC bursts open, deploying its payload. 26301_ H-88 Terminator unfolds itself. 26301_ B-74 Champion unfolds itself. 26301_ M-36 Artificer unfolds itself. 26301_ Penetrated by Slug. 26302_ 0bP_NET: DD-05H though, you were a good one, we'll never forget the way you smashed your way west and just never stopped smashing. 26303_ 0bP_NET: Well my eulogizing is soon to be interrupted by scenes of half of Protoforge collapsing in on itself. Be careful out there. 26303_ H-88 Terminator destroyed. 26303_ G-73 Enforcer destroyed. 26304_ 0bP_NET: T-2! 26305_ 0bP_NET: And that's a wrap. 26305_ B-74 Champion destroyed. [Achievement: Robotopia] Map ----- +----------------------------------------------------+ | " ##???????????# ""G"" #???# #??????????? ??? | | " "#???????????# #???# #?????????## ??? | | "" "#???????????###########???# ################ | | """"#?????????????????????????# | | #####?????????????????????????# | | ??????????????????????????????# | | ??????????????????????????????######## ### | | ?????????????????????????????????????# #?? | | ?????????????????????????????????????# #?? | | ?????????????????????????????????????# #?? | | ?????????????????????????????????????# #?? | | ?????????????????????????????????????## ##?? | | ?????????????????????????????#####????# #??? | | ?????????????????????????????########## #### | | ?????????????????????????????##""""""" """" | | ??########?########?########?## """" "" | | ??########?########?########### "" " | | ####""""#####""""#####""" # # # " | | #### !! ##### ##### !!!###;; | | | | | | | | | | | | | | #### !!####" ##### !!@;;### | | ####""""#####""""#####""""#####"""" """"""""""" | | #?########?########?########?##""""""""""""""""" " | | #?########?########?########?##"""""""""""""""""" | | #????????????????????????????##################### | | #????????????????????????????#####???????????????? | | #????????????????????????????????????????????????? | | #????????????????????????????????????????????????? | | #?????????????????????????????######??####???????? | | #?????????????????????????????# ??? ???? | | #?????????????????????????????# "" "" " ? | | #?????????????????????????????# """" "" ? | | #?????????????????????????????# "" " "" "" ? | | #?????????????????????????????# """ """" | | #?????????????????????????????# "" | | #?????????????????????????????# " "" | | #?????????????????????????????# "" "" """" | | ??????????????????????????????# " "" | | ??????????????????????????????# " " " " | | ??????????????????????????????# " " " """" | | ??????????????????????????????# "" | | ????????????#############?????# "" | | ????????????#############?????# """"" " " | | ????????????## ##?????# " | | ???????????### """ """ ##??##?# " % | +----------------------------------------------------+ Best States ------------- Heat Dissipation 69 Coolant Potential 120 Energy Generation 61 Energy Capacity 890 Matter Stores 1050 Matter Capacity 1800 Sight Range 24 Robot Scan Range 20 Terrain Scan Range 24 Terrain Scan Density 10 ECM Strength 2 Jamming Range 16 Cloak Strength 2 Corruption Block 20 Armor Coverage 825 Resistance: TH 75 Resistance: EX 75 Core Shielding 90 Propulsion Shielding 66 Melee Speed Boost 40 Phase Shifting 25 Evasion (%) 96 Targeting Accuracy 42 Core Analysis 8 Armor Integrity Analysis 50 Recoil Reduction 2 Kinecelleration 66 Offensive Hacking 21 Defensive Hacking 30 Authchip Count 1 Trap Extractor Capacity 8 Item Schematics ----------------- Cmb. Airjet | -5/Factory | Scanalyzed Mak. Power Source | -4/Factory | Extrapolated 0b10 Decoder Chip [Skirmisher] | -4/Factory | Extrapolated Energy Deflector | -4/Factory | Extrapolated Mak. Hacking Suite | -4/Factory | Extrapolated Mak. System Shield | -4/Factory | Extrapolated Mak. System Restoration Module | -4/Factory | Extrapolated Mak. Coolant Network | -4/Upper Caves | Extrapolated Mak. Medium Armor Plating | -4/Upper Caves | Extrapolated Mak. Ablative Armor | -4/Upper Caves | Extrapolated Mak. Laser | -4/Upper Caves | Extrapolated Hvy. Beamcaster | -4/Upper Caves | Extrapolated Mak. Heavy Armor Plating | -4/Upper Caves | Extrapolated Spk. Medium Treads | -4/Upper Caves | Extrapolated Assault Drone Bay | -4/Zhirov | Free Exp. Heat Sink | -4/Zhirov | Free Exp. Optical Array | -4/Zhirov | Free Imp. Arc Thrower | -4/Zhirov | Free Spk. Heavy Treads | -4/Zhirov | Extrapolated Mak. Thermal Plating | -3/Proximity Caves | Extrapolated Machine Rigger | -3/Proximity Caves | Extrapolated Multitool | -3/Proximity Caves | Extrapolated Plasma Flamer | -3/Proximity Caves | Extrapolated Heat Bomb Trap | -3/Research | Extrapolated Deep Structural Scanner | -3/Research | Extrapolated Imp. Diametric Drive | -3/Testing | Archive Adv. KE Penetrator | -3/Testing | Archive Adv. Energy Well | -3/Testing | Archive Cld. Field Propulsion Drive | -3/Testing | Archive Exp. Cooling System | -2/Quarantine | Archive Prc. Phase Gun | -2/Quarantine | Archive Tesla Bomb Launcher | -2/Quarantine | Archive Shock Maul | -2/Quarantine | Archive Lgt. Antimatter Cannon | -2/Quarantine | Archive Exp. Transmission Jammer | -2/Quarantine | Archive Exp. ECM Suite | -2/Quarantine | Archive Hvy. Neutron Cannon | -2/Quarantine | Archive Exp. Power Amplifier | -2/Quarantine | Archive Mni. Fusion Reactor | -2/Quarantine | Archive Exp. Signal Interpreter | -2/Quarantine | Archive Imp. Q-thruster | -2/Quarantine | Archive Exp. Matter Compressor | -2/Quarantine | Archive Imp. Matter Neutralizer | -2/Quarantine | Archive Molecular Scythe | -2/Quarantine | Archive Imp. Quantum Reactor | -2/Protoforge | Archive Robot Schematics ------------------ C-55 Analyst | -3/Testing | Archive R-06 Scavenger | -3/Testing | Archive B-60 Warrior | -3/Testing | Archive A-02 Transporter | -2/Quarantine | Archive H-88 Terminator | -2/Quarantine | Archive G-73 Enforcer | -2/Quarantine | Archive K-01 Serf | -2/Quarantine | Archive Fabricated ------------ Cmb. Airjet | x2 | -4/Factory | Authchip Repaired ---------- Antigrav System | 10% | -5/Factory Studied --------- Antigrav System | -5/Factory | Hacked Lance | -5/Factory | Hacked Cmb. Airjet | -4/Factory | Hacked Mic. Fission Core | -4/Factory | Hacked Lgt. Antimatter Reactor | -3/Research | Hacked Mic. Antimatter Reactor | -3/Testing | Hacked Enh. Force Lance | -3/Testing | Hacked Imp. Antigrav System | -2/Research | Hacked Com. HERF Cannon | -2/Research | Hacked Cmb. Linear Gravjet | -2/Quarantine | Hacked Alien Tech Used ----------------- Integrated Dissipator Transdimensional Reconstructor Dimensional Node Initializer Subatomic Replicator Supercharged TR Achievements -------------- Bending The Rules Dominance Asserted Fine I'll Do It Myself Inventory Pressure No Room For Error Perfect Aim Please No, Not That Ponder That! Robotopia Scientist At Large UFD MVP We Are One Challenges ------------ None Game ------ Seed PointyFluxDevice Manual? 0 Play Time 12:33:10 Cumulative 496.3 hours Start 2026.04.14 @ 16:35:38 End 2026.04.20 @ 00:08:01 Sessions 40 Manual Loads 0 Difficulty Rogue Special Mode None Game No. 89 Rogue 89 Adventurer 0 Explorer 0 Win Type 9 Total 18 Types 7/1/5/1/1/0/1/1/0/1 Lore% 84 Gallery% 77 Achievement% 73 Wizard Run 0 Options --------- Layout 1 ASCII 0 Keyboard 1 Movement Vi Keybinds 1 Fullscreen 1 Font 36/Tamsyn Map View 50x40 Zoom Use 0% Tactical HUD 1 Map Filters NONE Filters NONE Steam 1 RUN: eeb3cd3a-9e2c-48cd-b854-48041874a0a0